bitfinex/quotes_SOLUSD_20240605
["timestamp","ask_amount","ask_price","bid_price","bid_amount"]
[1717613772336,0.714826,173.23,173.22,8.99580651]
[1717613772656,7.884826,173.23,173.22,8.99580651]
[1717613778047,13.991326,173.23,173.22,8.99580651]
[1717613778242,6.821326,173.23,173.22,8.99580651]
[1717613778570,13.991326,173.23,173.22,8.99580651]
[1717613779168,0.714826,173.23,173.22,8.99580651]
[1717613779376,7.884826,173.23,173.22,8.99580651]
[1717613781065,0.714826,173.23,173.22,8.99580651]
[1717613781255,7.884826,173.23,173.22,8.99580651]
[1717613782551,0.714826,173.23,173.22,8.99580651]
[1717613782880,7.884826,173.23,173.22,8.99580651]
[1717613784071,0.714826,173.23,173.22,8.99580651]
[1717613785565,7.884826,173.23,173.22,8.99580651]
[1717613786364,0.714826,173.23,173.22,8.99580651]
[1717613786666,7.884826,173.23,173.22,8.99580651]
[1717613787271,0.714826,173.23,173.22,8.99580651]
[1717613787568,7.884826,173.23,173.22,8.99580651]
[1717613787875,0.714826,173.23,173.22,8.99580651]
[1717613788066,7.884826,173.23,173.22,8.99580651]
[1717613788562,0.714826,173.23,173.22,8.99580651]
[1717613788881,7.884826,173.23,173.22,8.99580651]
[1717613789982,0.714826,173.23,173.22,21.29740651]
[1717613790185,7.17,173.32,173.22,109.58280651]
[1717613790359,7.17,173.31,173.24,5.777]
[1717613790567,7.17,173.31,173.25,74.29677788]
[1717613790765,7.17,173.31,173.26,8.95626092]
[1717613791070,7.17,173.31,173.27,45.17]
[1717613791270,7.17,173.31,173.28,28.95522719]
[1717613791473,7.17,173.3,173.29,8.95471041]
[1717613791977,7.17,173.3,173.29,28.95471041]
[1717613792158,2.9469206,173.4,173.29,28.95471041]
[1717613792363,7.17,173.31,173.3,8.9541937]
[1717613793177,2.9470206,173.4,173.3,8.9541937]
[1717613793386,0.8132206,173.4,173.3,14.7311937]
[1717613793687,6.3106,173.33,173.31,8.99113498]
[1717613793985,7.17,173.32,173.31,8.99113498]
[1717613796686,13.3664,173.32,173.31,8.99113498]
[1717613798199,7.17,173.32,173.31,8.99113498]
[1717613799187,21.51,173.34,173.31,8.99113498]
[1717613799391,7.17,173.32,173.31,8.99113498]
[1717613800975,13.2608,173.32,173.31,8.99113498]
[1717613801477,7.17,173.32,173.31,8.99113498]
[1717613803388,6.0908,173.36,173.31,8.99113498]
[1717613803795,7.17,173.32,173.31,8.99113498]
[1717613804371,2.1341,173.37,173.31,8.99113498]
[1717613804591,7.17,173.32,173.31,8.99113498]
[1717613805298,7.17,173.32,173.25,5.777]
[1717613805492,7.17,173.3,173.27,5.777]
[1717613805794,7.17,173.3,173.29,5.777]
[1717613806473,7.17,173.34,173.29,5.777]
[1717613806670,28.68,173.34,173.3,8.9916538]
[1717613811581,2.1343,173.36,173.3,8.9916538]
[1717613811783,7.17,173.31,173.3,8.9916538]
[1717613813682,6.5744,173.34,173.3,8.9916538]
[1717613813890,7.17,173.31,173.3,8.9916538]
[1717613815188,8.7089,173.34,173.3,8.9916538]
[1717613815388,7.17,173.31,173.3,8.9916538]
[1717613815791,6.01382334,173.38,173.3,8.9916538]
[1717613816113,7.17,173.31,173.3,8.9916538]
[1717613820102,7.17,173.31,173.21,12.2457]
[1717613820315,7.17,173.26,173.23,6.5445]
[1717613820514,7.17,173.26,173.24,45.0]
[1717613821122,6.369594,173.26,173.24,45.0]
[1717613821325,7.17,173.27,173.25,5.777]
[1717613822028,7.17,173.27,173.24,45.0]
[1717613822224,7.17,173.27,173.25,5.777]
[1717613825125,28.68,173.34,173.25,5.777]
[1717613825333,28.68,173.34,173.25,12.425]
[1717613825627,7.17,173.29,173.25,12.425]
[1717613826806,7.17,173.28,173.25,12.425]
[1717613827007,7.17,173.27,173.25,12.425]
[1717613827431,7.17,173.28,173.25,12.425]
[1717613828247,7.17,173.28,173.25,5.777]
[1717613828737,7.17,173.28,173.22,5.947]
[1717613829033,7.17,173.25,173.23,20.0]
[1717613829538,7.17,173.26,173.22,20.0]
[1717613829739,7.17,173.26,173.22,26.5924]
[1717613830030,4.2689,173.35,173.24,5.777]
[1717613830031,2.1344,173.35,173.24,5.777]
[1717613830233,7.17,173.28,173.25,5.777]
[1717613830736,30.8145,173.34,173.25,5.777]
[1717613830942,7.17,173.27,173.25,5.777]
[1717613831910,28.68,173.34,173.25,5.777]
[1717613832110,7.17,173.27,173.25,5.777]
[1717613833625,30.8145,173.34,173.25,5.777]
[1717613833807,7.17,173.28,173.25,5.777]
[1717613835333,2.1344,173.35,173.25,5.777]
[1717613835513,28.68,173.34,173.25,5.777]
[1717613835718,7.17,173.28,173.25,11.897]
[1717613835946,28.68,173.34,173.25,11.897]
[1717613836243,7.17,173.29,173.25,11.897]
[1717613838744,7.17,173.28,173.25,11.897]
[1717613839037,7.17,173.27,173.24,0.17]
[1717613839233,7.17,173.27,173.25,5.777]
[1717613839644,7.17,173.27,173.24,20.0]
[1717613839819,7.17,173.27,173.22,26.4181]
[1717613840019,7.17,173.27,173.23,50.947]
[1717613840219,7.17,173.26,173.25,5.777]
[1717613840441,7.17,173.27,173.25,25.777]
[1717613840650,7.17,173.27,173.25,5.777]
[1717613841142,7.17,173.28,173.25,5.777]
[1717613841347,7.17,173.28,173.24,5.777]
[1717613841552,7.17,173.28,173.25,25.777]
[1717613842432,24.7902,173.38,173.25,25.777]
[1717613842622,7.17,173.28,173.25,20.0]
[1717613842942,7.17,173.28,173.24,26.03]
[1717613844544,7.17,173.28,173.25,5.777]
[1717613847641,7.17,173.27,173.24,20.0]
[1717613848815,7.17,173.27,173.25,5.767]
[1717613850157,49.6083,173.37,173.25,5.767]
[1717613850357,28.68,173.34,173.24,20.0]
[1717613850647,7.17,173.28,173.25,45.17]
[1717613851049,7.17,173.29,173.25,45.17]
[1717613851237,7.17,173.29,173.26,5.767]
[1717613852550,28.68,173.34,173.26,5.767]
[1717613852756,2.1342,173.36,173.26,5.767]
[1717613853047,7.17,173.3,173.26,5.767]
[1717613855843,7.17,173.29,173.26,5.767]
[1717613856649,7.17,173.29,173.25,45.17]
[1717613856857,7.17,173.29,173.26,25.767]
[1717613857154,7.17,173.27,173.26,20.0]
[1717613857646,7.17,173.28,173.26,25.767]
[1717613857856,7.17,173.28,173.23,0.17]
[1717613857857,7.17,173.27,173.23,5.937]
[1717613858040,7.17,173.27,173.24,20.0]
[1717613858241,7.17,173.26,173.23,20.0]
[1717613858443,7.17,173.25,173.23,20.0]
[1717613858627,7.17,173.26,173.23,20.0]
[1717613858829,7.17,173.26,173.24,5.767]
[1717613859257,7.17,173.27,173.24,5.767]
[1717613860052,7.17,173.3,173.25,65.34]
[1717613860346,2.1341,173.37,173.25,65.34]
[1717613860347,7.17,173.31,173.26,20.0]
[1717613860537,7.17,173.3,173.27,45.0]
[1717613861160,8.4592,173.38,173.27,45.0]
[1717613861337,8.4592,173.38,173.26,45.0]
[1717613861533,7.17,173.3,173.27,20.0]
[1717613865049,7.17,173.3,173.28,5.767]
[1717613865453,7.17,173.31,173.27,20.0]
[1717613865662,8.4591,173.38,173.28,45.34]
[1717613865957,0.8132206,173.4,173.28,45.34]
[1717613866162,7.17,173.36,173.3,12.937]
[1717613866347,0.8132206,173.4,173.31,65.34]
[1717613866549,7.17,173.36,173.31,71.9281]
[1717613866853,0.8132206,173.4,173.31,71.9281]
[1717613867052,7.17,173.36,173.31,71.9281]
[1717613867353,7.17,173.37,173.31,71.9281]
[1717613869555,7.17,173.35,173.31,71.9281]
[1717613869761,7.17,173.35,173.31,65.34]
[1717613869950,0.8132206,173.4,173.31,65.17]
[1717613870150,7.17,173.35,173.31,65.17]
[1717613870459,7.17,173.35,173.31,20.0]
[1717613870660,0.8132206,173.4,173.27,6.2815]
[1717613870871,7.17,173.31,173.28,20.0]
[1717613871173,7.17,173.32,173.28,20.0]
[1717613871371,7.17,173.33,173.28,26.4896]
[1717613871750,7.17,173.32,173.28,35.7308]
[1717613871954,7.17,173.35,173.3,5.767]
[1717613872260,7.17,173.36,173.31,71.8296]
[1717613872971,0.8132206,173.4,173.32,5.767]
[1717613873169,7.17,173.36,173.33,45.0]
[1717613873372,0.8132206,173.4,173.33,45.0]
[1717613873588,7.17,173.36,173.33,45.0]
[1717613873750,7.17,173.36,173.32,45.0]
[1717613874072,7.17,173.36,173.32,50.767]
[1717613874877,0.8132206,173.4,173.32,50.767]
[1717613875058,0.8132206,173.4,173.33,0.34]
[1717613875249,7.17,173.37,173.33,0.34]
[1717613875450,7.17,173.36,173.33,0.17]
[1717613875668,0.8132206,173.4,173.33,0.17]
[1717613875868,7.17,173.36,173.33,0.17]
[1717613876268,0.8132206,173.4,173.32,50.767]
[1717613876269,7.17,173.35,173.32,50.767]
[1717613876790,0.8132206,173.4,173.32,50.767]
[1717613876949,7.9832206,173.4,173.34,5.767]
[1717613877151,7.9832206,173.4,173.35,71.107]
[1717613877152,7.17,173.39,173.35,71.107]
[1717613877365,7.17,173.39,173.36,0.17]
[1717613879570,7.17,173.39,173.35,65.0]
[1717613880056,0.8132206,173.4,173.35,65.0]
[1717613880255,0.8132206,173.4,173.36,0.17]
[1717613880577,0.8132206,173.4,173.35,65.0]
[1717613881274,0.8132206,173.4,173.36,5.767]
[1717613881955,0.8132206,173.4,173.35,65.0]
[1717613882149,7.9832206,173.4,173.36,0.17]
[1717613882470,7.17,173.39,173.35,65.0]
[1717613883176,7.17,173.38,173.35,65.0]
[1717613883357,7.17,173.38,173.35,20.0]
[1717613883557,0.8132206,173.4,173.34,0.17]
[1717613883558,7.17,173.37,173.34,0.17]
[1717613883861,7.17,173.37,173.33,45.34]
[1717613884062,7.17,173.37,173.35,5.767]
[1717613884268,7.17,173.37,173.34,5.767]
[1717613884476,7.17,173.37,173.33,45.34]
[1717613884477,7.17,173.37,173.35,20.0]
[1717613885269,7.17,173.37,173.35,5.767]
[1717613885579,7.17,173.37,173.34,20.0]
[1717613886279,7.17,173.36,173.35,5.767]
[1717613886577,7.17,173.36,173.35,25.767]
[1717613887578,0.8132206,173.4,173.35,25.767]
[1717613887872,7.17,173.36,173.35,20.0]
[1717613888070,7.17,173.36,173.35,5.767]
[1717613888375,7.17,173.36,173.35,20.0]
[1717613888572,0.8132206,173.4,173.35,20.0]
[1717613888776,7.17,173.36,173.34,20.0]
[1717613888984,7.17,173.36,173.34,25.767]
[1717613889157,0.8132206,173.4,173.34,20.0]
[1717613889356,7.17,173.36,173.32,20.0]
[1717613889683,7.17,173.35,173.29,20.0]
[1717613890059,7.17,173.34,173.26,11.8123]
[1717613890364,7.17,173.33,173.29,7.17]
[1717613890565,6.3918,173.39,173.29,7.17]
[1717613890566,7.17,173.32,173.29,7.17]
[1717613890767,7.17,173.32,173.26,18.9823]
[1717613891068,7.17,173.33,173.26,20.338]
[1717613891262,7.17,173.32,173.26,27.508]
[1717613892370,7.17,173.32,173.26,20.338]
[1717613892568,7.17,173.32,173.28,5.767]
[1717613892790,7.17,173.31,173.27,45.34]
[1717613893295,7.17,173.31,173.27,0.34]
[1717613893960,7.17,173.32,173.27,0.34]
[1717613894160,23.7355,173.39,173.27,20.34]
[1717613894370,7.17,173.32,173.28,45.0]
[1717613894566,7.17,173.32,173.29,20.0]
[1717613895603,23.7355,173.39,173.29,20.0]
[1717613895895,7.17,173.32,173.29,20.0]
[1717613898100,7.17,173.31,173.29,20.0]
[1717613899597,7.17,173.31,173.27,20.0]
[1717613900677,7.17,173.31,173.26,25.767]
[1717613901904,7.17,173.3,173.26,25.767]
[1717613903199,7.17,173.3,173.26,20.0]
[1717613903504,7.17,173.29,173.25,5.937]
[1717613903685,7.17,173.29,173.26,20.0]
[1717613904286,7.17,173.29,173.24,5.767]
[1717613904487,7.17,173.29,173.26,5.767]
[1717613904689,7.17,173.29,173.27,25.767]
[1717613908790,7.17,173.29,173.23,0.17]
[1717613908791,7.17,173.28,173.23,0.17]
[1717613908989,28.68,173.34,173.23,65.34]
[1717613908990,7.17,173.27,173.23,65.34]
[1717613909787,7.17,173.27,173.24,5.767]
[1717613909990,7.17,173.27,173.25,20.0]
[1717613910207,7.17,173.27,173.23,65.34]
[1717613910713,7.17,173.27,173.24,5.767]
[1717613911010,7.17,173.27,173.25,25.767]
[1717613911205,7.17,173.27,173.26,20.0]
[1717613911415,7.17,173.27,173.23,65.34]
[1717613911788,7.17,173.28,173.23,65.34]
[1717613912914,7.17,173.28,173.24,5.767]
[1717613913087,7.17,173.28,173.25,20.0]
[1717613913714,6.6621,173.33,173.25,20.0]
[1717613913900,7.17,173.29,173.25,20.0]
[1717613915300,7.17,173.28,173.25,20.0]
[1717613919400,7.17,173.28,173.24,25.767]
[1717613919723,7.17,173.28,173.24,20.0]
[1717613920220,7.17,173.28,173.24,25.767]
[1717613922121,7.17,173.29,173.24,25.767]
[1717613923217,6.6621,173.33,173.24,25.767]
[1717613923403,7.17,173.29,173.24,25.767]
[1717613924819,6.6621,173.33,173.24,25.767]
[1717613925121,7.17,173.29,173.24,25.767]
[1717613926307,7.17,173.28,173.24,25.767]
[1717613926525,7.17,173.28,173.24,20.0]
[1717613926826,7.17,173.28,173.24,25.767]
[1717613927916,7.17,173.28,173.24,20.0]
[1717613928121,7.17,173.28,173.24,25.767]
[1717613941049,7.17,173.28,173.24,20.0]
[1717613941220,7.17,173.28,173.24,25.767]
[1717613941408,6.6621,173.33,173.24,25.767]
[1717613941612,7.17,173.29,173.24,25.767]
[1717613944321,7.17,173.3,173.25,0.17]
[1717613944630,6.4076,173.37,173.25,0.17]
[1717613944631,6.4076,173.37,173.26,5.767]
[1717613944839,6.4076,173.37,173.27,65.34]
[1717613945220,7.17,173.32,173.27,65.34]
[1717613947242,7.17,173.32,173.27,65.17]
[1717613947411,7.17,173.31,173.27,65.17]
[1717613948821,7.17,173.31,173.28,5.767]
[1717613952027,6.4076,173.37,173.28,5.767]
[1717613952344,7.17,173.31,173.28,5.767]
[1717613953624,6.4076,173.37,173.28,5.767]
[1717613953950,7.17,173.32,173.28,5.767]
[1717613954530,6.4076,173.37,173.28,5.767]
[1717613954735,7.17,173.32,173.28,5.767]
[1717613954922,6.4076,173.37,173.28,5.767]
[1717613955436,7.17,173.32,173.28,5.767]
[1717613956349,7.17,173.31,173.28,5.767]
[1717613963456,7.17,173.31,173.27,20.0]
[1717613963635,7.17,173.31,173.27,5.767]
[1717613963838,7.17,173.31,173.28,25.767]
[1717613964029,7.17,173.31,173.28,5.767]
[1717613964441,7.17,173.3,173.28,5.767]
[1717613964655,7.17,173.3,173.27,5.767]
[1717613965045,7.17,173.3,173.28,20.0]
[1717613965560,7.17,173.29,173.22,7.17]
[1717613965764,7.17,173.28,173.23,20.17]
[1717613965964,7.17,173.28,173.23,20.0]
[1717613966959,7.17,173.28,173.24,5.767]
[1717613967259,7.17,173.28,173.25,25.767]
[1717613969546,7.17,173.28,173.27,12.8121]
[1717613969751,7.17,173.28,173.27,21.3536]
[1717613974569,28.68,173.34,173.31,2.1348]
[1717613974773,7.17,173.32,173.31,2.1348]
[1717613975138,7.17,173.32,173.28,10.6761]
[1717613975139,6.4914,173.31,173.3,2.1349]
[1717613975343,13.6614,173.31,173.3,2.1349]
[1717613980369,13.7291,173.31,173.28,2.1351]
[1717613980556,7.17,173.29,173.28,2.1351]
[1717613982474,7.17,173.29,173.25,14.949]
[1717613982684,6.5591,173.3,173.27,2.1353]
[1717613982975,7.17,173.28,173.27,2.1353]
[1717613989109,7.17,173.28,173.25,2.1356]
[1717613989276,7.17,173.26,173.24,4.2715]
[1717613989475,7.17,173.25,173.24,6.4072]
[1717613990280,14.34,173.25,173.23,2.1358]
[1717613990481,7.17,173.24,173.23,2.1358]
[1717613995893,7.17,173.24,173.14,21.93696306]
[1717613995894,7.17,173.24,173.17,6.4098]
[1717613996079,6.5224,173.23,173.21,2.136]
[1717613996276,7.17,173.22,173.21,2.136]
[1717613996476,7.17,173.22,173.2,2.1361]
[1717613996670,2.1358,173.24,173.21,2.1361]
[1717613996878,7.17,173.22,173.2,2.1361]
[1717613997091,7.17,173.21,173.2,2.1361]
[1717614000498,7.17,173.21,173.18,2.1363]
[1717614000677,7.17,173.21,173.19,2.1363]
[1717614000879,7.17,173.2,173.19,2.1363]
[1717614001078,7.17,173.2,173.18,2.1364]
[1717614001273,6.4685,173.17,173.14,11.13686306]
[1717614001584,7.17,173.15,173.14,11.13686306]
[1717614002203,24.6318,173.22,173.15,14.9579]
[1717614002496,6.0944,173.22,173.2,2.1362]
[1717614002672,7.17,173.21,173.2,2.1362]
[1717614003184,60.8511,173.21,173.18,2.1364]
[1717614003389,7.17,173.19,173.18,2.1364]
[1717614003595,6.375,173.21,173.18,2.1364]
[1717614003801,7.17,173.19,173.18,2.1364]
[1717614004398,2.1359,173.23,173.19,2.1363]
[1717614004587,7.17,173.2,173.19,2.1363]
[1717614005099,7.17,173.2,173.18,2.1365]
[1717614005274,2.136,173.22,173.17,4.2731]
[1717614005275,2.136,173.22,173.19,2.1363]
[1717614005477,39.3583,173.25,173.19,10.6816]
[1717614005478,2.1357,173.25,173.19,10.6816]
[1717614005674,28.68,173.25,173.22,2.1359]
[1717614005890,7.17,173.23,173.22,2.1359]
[1717614006287,2.1356,173.25,173.19,10.6816]
[1717614006488,7.17,173.21,173.19,10.6816]
[1717614006686,2.1356,173.25,173.21,2.136]
[1717614006886,2.1356,173.25,173.22,2.136]
[1717614007092,7.17,173.23,173.22,2.136]
[1717614010011,6.4079,173.3,173.15,7.17]
[1717614010314,2.1351,173.29,173.25,2.1355]
[1717614010615,2.135,173.3,173.26,2.1354]
[1717614010912,7.17,173.27,173.26,2.1354]
[1717614011414,7.17,173.27,173.25,2.1355]
[1717614011625,2.1351,173.29,173.25,2.1355]
[1717614011626,7.17,173.26,173.25,2.1355]
[1717614012520,7.17,173.26,173.24,2.1357]
[1717614012695,7.17,173.25,173.19,19.2264]
[1717614012906,6.4051,173.3,173.23,2.1358]
[1717614012907,2.1354,173.27,173.23,2.1358]
[1717614013195,7.17,173.24,173.23,2.1358]
[1717614014013,8.4789,173.27,173.23,2.1358]
[1717614014194,24.5905,173.31,173.24,2.1357]
[1717614014195,2.1353,173.28,173.24,2.1357]
[1717614014395,7.17,173.25,173.24,2.1357]
[1717614016326,2.135,173.3,173.26,2.1354]
[1717614016529,7.17,173.27,173.26,2.1354]
[1717614017934,7.17,173.27,173.25,2.1355]
[1717614018127,7.17,173.26,173.25,2.1355]
[1717614018640,10.6742,173.32,173.26,2.1354]
[1717614018641,2.135,173.3,173.26,2.1354]
[1717614018814,2.1348,173.32,173.28,2.1352]
[1717614019159,2.1348,173.32,173.29,2.1351]
[1717614019323,7.17,173.3,173.29,2.1351]
[1717614019713,7.17,173.3,173.28,2.1352]
[1717614020118,7.17,173.29,173.28,2.1352]
[1717614021831,7.17,173.29,173.27,2.1353]
[1717614022008,7.17,173.28,173.27,2.1353]
[1717614024635,2.1349,173.31,173.27,2.1353]
[1717614024846,7.17,173.28,173.27,2.1353]
[1717614026827,14.9406,173.36,173.25,6.4068]
[1717614027027,14.9406,173.36,173.29,2.135]
[1717614027028,7.17,173.3,173.29,2.135]
[1717614027429,2.1345,173.34,173.3,2.1349]
[1717614027631,7.17,173.31,173.3,2.1349]
[1717614028439,7.17,173.31,173.29,2.135]
[1717614029338,7.17,173.31,173.3,2.135]
[1717614029728,7.17,173.31,173.29,2.135]
[1717614029924,7.17,173.31,173.3,2.135]
[1717614031438,2.1343,173.36,173.31,2.1347]
[1717614031643,7.17,173.32,173.31,2.1347]
[1717614033425,7.17,173.32,173.3,2.1349]
[1717614033735,7.17,173.31,173.3,2.1349]
[1717614034318,7.17,173.32,173.31,2.1348]
[1717614035551,7.17,173.33,173.32,2.1347]
[1717614036636,7.17,173.33,173.31,2.1348]
[1717614036840,7.17,173.32,173.3,2.1349]
[1717614037029,7.17,173.31,173.28,2.1351]
[1717614037232,2.1347,173.33,173.29,2.135]
[1717614037451,7.17,173.3,173.29,2.135]
[1717614045761,7.17,173.3,173.28,2.1352]
[1717614045964,7.17,173.29,173.28,2.1352]
[1717614050064,6.5669,173.32,173.29,2.1351]
[1717614050240,7.17,173.3,173.29,2.1351]
[1717614050951,7.17,173.3,173.28,2.1352]
[1717614051132,7.17,173.29,173.28,2.1352]
[1717614053833,12.8062,173.36,173.3,2.135]
[1717614054033,7.17,173.31,173.3,2.135]
[1717614054359,7.17,173.31,173.29,2.135]
[1717614054563,7.17,173.3,173.29,2.135]
[1717614054739,7.17,173.3,173.28,2.1351]
[1717614054942,7.17,173.29,173.28,2.1351]
[1717614056366,8.5447,173.33,173.29,2.1351]
[1717614056550,7.17,173.3,173.29,2.1351]
[1717614059165,7.17,173.3,173.28,2.1351]
[1717614059559,7.17,173.3,173.29,2.1351]
[1717614060256,7.17,173.3,173.28,2.1351]
[1717614060451,7.17,173.29,173.28,2.1351]
[1717614062947,7.17,173.29,173.27,2.1353]
[1717614063142,7.17,173.28,173.26,2.1354]
[1717614063344,7.17,173.27,173.25,2.1355]
[1717614063566,7.17,173.26,173.25,2.1355]
[1717614064778,7.17,173.26,173.24,2.1357]
[1717614065074,7.17,173.25,173.24,2.1357]
[1717614066460,7.17,173.25,173.23,2.1358]
[1717614066665,7.17,173.24,173.22,2.1359]
[1717614066962,8.535,173.26,173.22,2.1359]
[1717614067167,7.17,173.23,173.21,2.136]
[1717614067469,2.1356,173.25,173.21,2.136]
[1717614067470,7.17,173.22,173.21,2.136]
[1717614069467,28.68,173.25,173.22,2.1359]
[1717614069776,7.17,173.23,173.21,2.136]
[1717614070072,7.17,173.22,173.21,2.136]
[1717614071876,7.17,173.22,173.2,2.1361]
[1717614072083,7.17,173.21,173.19,2.1363]
[1717614072381,7.17,173.2,173.19,2.1363]
[1717614074068,7.17,173.2,173.15,4.2735]
[1717614074275,2.1361,173.21,173.17,2.1365]
[1717614074456,7.17,173.18,173.17,2.1365]
[1717614077071,2.1361,173.21,173.17,2.1365]
[1717614077260,2.136,173.22,173.18,2.1364]
[1717614077455,7.17,173.19,173.18,2.1364]
[1717614079481,7.17,173.19,173.17,2.1365]
[1717614079690,7.17,173.18,173.17,2.1365]
[1717614079856,19.9251,173.27,173.18,6.4093]
[1717614080054,6.0582,173.28,173.2,6.4086]
[1717614080274,6.0582,173.28,173.15,50.767]
[1717614080489,19.7835,173.31,173.25,2.1355]
[1717614080490,7.17,173.26,173.25,2.1355]
[1717614081381,7.17,173.26,173.24,2.1357]
[1717614083612,7.17,173.26,173.25,2.1356]
[1717614083905,7.17,173.27,173.25,2.1356]
[1717614085398,21.4939,173.32,173.22,4.2719]
[1717614085399,2.135,173.3,173.23,4.2716]
[1717614085622,7.17,173.28,173.26,2.1354]
[1717614087800,7.17,173.28,173.25,2.1356]
[1717614088003,7.17,173.27,173.24,2.1356]
[1717614088307,7.17,173.26,173.24,2.1356]
[1717614089282,7.17,173.26,173.25,2.1356]
[1717614089500,7.17,173.27,173.25,2.1356]
[1717614089977,7.17,173.26,173.24,2.1356]
[1717614090179,7.17,173.26,173.25,2.1356]
[1717614090381,7.17,173.26,173.24,2.1357]
[1717614090592,7.17,173.25,173.24,2.1357]
[1717614091609,7.17,173.25,173.23,2.1358]
[1717614092696,7.17,173.25,173.24,2.1357]
[1717614093199,7.17,173.25,173.2,6.4086]
[1717614093508,7.17,173.25,173.21,2.136]
[1717614093509,7.17,173.22,173.21,2.136]
[1717614096403,7.17,173.23,173.22,2.1359]
[1717614096612,2.1352,173.29,173.25,2.1355]
[1717614096816,7.17,173.26,173.25,2.1355]
[1717614097408,7.17,173.26,173.24,2.1357]
[1717614097921,7.17,173.26,173.22,4.2718]
[1717614098123,7.17,173.26,173.22,10.6798]
[1717614098300,2.1352,173.29,173.25,2.1356]
[1717614098301,7.17,173.27,173.25,2.1356]
[1717614098924,4.2691,173.34,173.16,12.0897]
[1717614099112,2.1351,173.3,173.26,2.1354]
[1717614099310,7.17,173.28,173.26,2.1354]
[1717614099915,7.17,173.27,173.26,2.1354]
[1717614100343,7.17,173.28,173.26,2.1354]
[1717614100513,7.17,173.28,173.25,2.1355]
[1717614100710,7.17,173.27,173.25,2.1355]
[1717614101817,2.135,173.3,173.23,6.4075]
[1717614102015,7.17,173.27,173.23,6.4075]
[1717614102313,7.17,173.28,173.26,2.1354]
[1717614102933,2.135,173.3,173.26,2.1354]
[1717614103237,7.17,173.28,173.26,2.1354]
[1717614103731,7.17,173.27,173.25,2.1355]
[1717614105106,7.17,173.27,173.26,2.1355]
[1717614105711,7.17,173.28,173.26,2.1355]
[1717614106736,7.17,173.28,173.25,2.1355]
[1717614107237,7.17,173.27,173.25,2.1355]
[1717614108446,7.17,173.28,173.26,2.1355]
[1717614110044,2.1351,173.29,173.26,2.1355]
[1717614110230,7.17,173.28,173.26,2.1355]
[1717614111737,2.1351,173.29,173.26,2.1355]